fUST/lending_fUST_20250510
["ID","MTS","AMOUNT","RATE_DAILY","PERIOD"]
[360469407,1746806652838,156.066024,0.0001519,30]
[360469408,1746806653152,156.066024,0.00014992,30]
[360469409,1746806653464,156.066024,0.00014795,30]
[360469410,1746806653841,156.066024,0.00014598,30]
[360469456,1746807032499,-155.0,0.0001005,2]
[360469458,1746807032510,-320.9,0.000103,2]
[360469460,1746807032522,-679.099999,0.000103,2]
[360469462,1746807032532,-465.00035849,0.00010326,2]
[360469465,1746807032542,-350.75566551,0.000105,2]
[360469467,1746807032552,-207.4,0.00010584,2]
[360469469,1746807032562,-1200.0,0.00010585,2]
[360469471,1746807032571,-224.59105882,0.00010586,2]
[360469473,1746807032581,-522.19701002,0.00010586,2]
[360469475,1746807032590,-500.0,0.00010586,2]
[360469477,1746807032600,-500.0,0.00010586,2]
[360469479,1746807032609,-232.62864609,0.00010586,2]
[360469481,1746807032619,-11196.14535706,0.00010586,2]
[360469483,1746807032629,-577.13714882,0.00010589,2]
[360469485,1746807032639,-187.09855879,0.00010589,2]
[360469487,1746807032648,-500.0,0.00010589,2]
[360469489,1746807032658,-192.14274557,0.00010589,2]
[360469491,1746807032667,-500.0,0.0001059,2]
[360469492,1746807032680,-500.0,0.0001059,2]
[360469493,1746807032690,-500.0,0.0001059,2]
[360469494,1746807032699,-500.0,0.0001059,2]
[360469495,1746807032709,-500.0,0.0001059,2]
[360469496,1746807032718,-500.0,0.0001059,2]
[360469497,1746807032728,-276.94420014,0.0001059,2]
[360469498,1746807032737,-13140.95209161,0.0001059,2]
[360469499,1746807032749,-5619.71396647,0.0001059,2]
[360469500,1746807032763,-394.543354,0.00010636,2]
[360469501,1746807032773,-2003.09503115,0.00010672,2]
[360469502,1746807032784,-502.79724455,0.00010673,2]
[360469503,1746807032794,-500.0,0.00010673,2]
[360469504,1746807032804,-500.0,0.00010673,2]
[360469505,1746807032814,-501.77004466,0.00010673,2]
[360469506,1746807032824,-355.4673736,0.00010673,2]
[360469507,1746807032834,-500.0,0.00010673,2]
[360469508,1746807032844,-500.0,0.00010673,2]
[360469509,1746807032853,-500.0,0.00010673,2]
[360469510,1746807032863,-500.0,0.00010673,2]
[360469511,1746807032872,-500.0,0.00010673,2]
[360469512,1746807032881,-500.0,0.00010673,2]
[360469513,1746807032891,-500.0,0.00010673,2]
[360469527,1746807033069,-500.0,0.00010673,2]
[360469529,1746807033081,-500.0,0.00010673,2]
[360469531,1746807033091,-500.0,0.00010673,2]
[360469533,1746807033102,-500.0,0.00010673,2]
[360469535,1746807033112,-500.0,0.00010673,2]
[360469537,1746807033122,-503.64763726,0.00010673,2]
[360469539,1746807033132,-500.0,0.00010673,2]
[360469541,1746807033144,-502.32050621,0.00010673,2]
[360469544,1746807033157,-500.0,0.00010673,2]
[360469546,1746807033170,-500.0,0.00010673,2]
[360469548,1746807033181,-500.0,0.00010673,2]
[360469549,1746807033191,-150.0,0.00010689,2]
[360469551,1746807033201,-150.0,0.00010689,2]
[360469553,1746807033211,-150.0,0.00010689,2]
[360469556,1746807033222,-150.0,0.00010689,2]
[360469558,1746807033232,-150.0,0.00010689,2]
[360469560,1746807033242,-546.0,0.00010689,2]
[360469561,1746807033252,-708.0,0.00010689,2]
[360469564,1746807033262,-2240.0,0.00010689,2]
[360469566,1746807033271,-404.0,0.00010689,2]
[360469568,1746807033281,-166.747,0.00010689,2]
[360469569,1746807033291,-43314.18368959,0.0001069,2]
[360469572,1746807033308,-553.83063043,0.0001069,2]
[360470040,1746807041309,-300.0,0.00010585,2]
[360470042,1746807041323,-3857.024551,0.0001069,2]
[360470049,1746807041374,-4548.61672614,0.0001069,2]
[360470051,1746807041391,-255.83204123,0.0001069,2]
[360470054,1746807041407,-3053.02377139,0.0001069,2]
[360470090,1746807042001,-2138.59989423,0.0001069,2]
[360470276,1746807043727,-1541.58962733,0.0001069,2]
[360470598,1746807046907,-87995.23238773,0.0001069,2]
[360470600,1746807046920,-7499.03750833,0.0001069,2]
[360470670,1746807047612,-3428.46338918,0.0001069,2]
[360470790,1746807082492,-211.28827892,9.95e-05,2]
[360470791,1746807086644,-241.97980148,9.95e-05,2]
[360470795,1746807101698,-38.18357669,9.95e-05,2]
[360470800,1746807242981,156.066024,0.0001519,30]
[360470801,1746807243278,156.066024,0.00014992,30]
[360470802,1746807243742,156.066024,0.00014795,30]
[360470824,1746807474818,-156.066024,0.00010418,2]
[360470825,1746807474840,-156.066024,0.00010449,2]
[360470826,1746807474863,-156.066024,0.0001048,2]
[360470827,1746807474886,-416.41376901,0.00010536,2]
[360470828,1746807474908,-156.066024,0.00010553,3]
[360470829,1746807474930,-511.0,0.00010588,2]
[360470830,1746807474955,-500.0,0.00010588,2]
[360470831,1746807474986,-500.0,0.00010588,2]
[360470832,1746807475009,-500.0,0.00010588,2]
[360470833,1746807475039,-500.0,0.00010588,2]
[360470834,1746807475063,-500.0,0.00010588,2]
[360470835,1746807475086,-297.95781179,0.00010588,2]
[360470836,1746807475116,-296.34269555,0.00010588,2]
[360470837,1746807475143,-500.0,0.00010588,2]
[360470838,1746807475171,-500.0,0.00010588,2]
[360470839,1746807475200,-500.0,0.00010588,2]
[360470840,1746807475221,-403.99600418,0.00010589,2]
[360470841,1746807475244,-484.4999219,0.00010589,2]
[360470842,1746807475266,-28714.31381019,0.0001059,2]
[360470843,1746807475290,-373.5898882,0.00010636,2]
[360470844,1746807475311,-500.0,0.00010673,2]
[360470845,1746807475334,-503.57840558,0.00010673,2]
[360470846,1746807475358,-481.3108968,0.00010673,2]
[360470847,1746807475380,-500.0,0.00010673,2]
[360470848,1746807475402,-500.0,0.00010673,2]
[360470849,1746807475424,-500.0,0.00010673,2]
[360470850,1746807475446,-500.0,0.00010673,2]
[360470851,1746807475471,-500.0,0.00010673,2]
[360470852,1746807475494,-500.0,0.00010673,2]
[360470853,1746807475516,-500.0,0.00010673,2]
[360470854,1746807475537,-500.0,0.00010673,2]
[360470855,1746807475559,-500.0,0.00010673,2]
[360470856,1746807475581,-500.0,0.00010673,2]
[360470857,1746807475602,-506.50847732,0.00010673,2]
[360470858,1746807475623,-152.0,0.00010687,2]
[360470859,1746807475645,-207.4,0.00010688,2]
[360470860,1746807475667,-546.0,0.00010688,2]
[360470861,1746807475689,-2241.0,0.00010688,2]
[360470862,1746807475710,-708.0,0.00010688,2]
[360470863,1746807475731,-404.0,0.00010688,2]
[360470864,1746807475754,-72627.82422348,0.0001069,2]
[360470868,1746807546756,156.066024,0.0001519,30]
[360470880,1746807946040,-182.37944413,9.759e-05,2]
[360470882,1746807956669,-100.13926387,9.759e-05,2]
[360470893,1746808143097,156.066024,0.0001519,30]
[360470952,1746808232629,-176.0,0.000104,2]
[360470954,1746808232645,-156.066024,0.0001048,2]
[360470955,1746808232663,-441.97980148,0.0001059,2]
[360470956,1746808232679,-336.2308994,0.00010636,2]
[360470957,1746808232693,-199.7730902,0.00010672,2]
[360470958,1746808232708,-300.0,0.00010672,2]
[360470959,1746808232725,-500.0,0.00010673,2]
[360470960,1746808232743,-500.0,0.00010673,2]
[360470961,1746808232756,-500.0,0.00010673,2]
[360470963,1746808232769,-500.0,0.00010673,2]
[360470966,1746808232787,-500.0,0.00010673,2]
[360470970,1746808232799,-500.0,0.00010673,2]
[360470974,1746808232813,-500.0,0.00010673,2]
[360470977,1746808232826,-500.0,0.00010673,2]
[360470980,1746808232843,-500.0,0.00010673,2]
[360470981,1746808232857,-166.747,0.00010677,2]
[360470982,1746808232872,-261.87433375,0.00010684,2]
[360470983,1746808232892,-813.95162247,0.00010687,2]
[360470984,1746808232906,-404.0,0.00010688,2]
[360470985,1746808232921,-339.14994533,0.00010689,2]
[360470986,1746808232936,-282.79720292,0.00010689,2]
[360470987,1746808232950,-210.41466872,0.00010689,2]
[360470988,1746808232964,-192.79876949,0.00010689,2]
[360470989,1746808232979,-162651.86360144,0.0001069,2]
[360470996,1746808238627,-546.0,0.00010688,2]
[360470997,1746808238641,-5992.8368079,0.0001069,2]
[360471004,1746808240948,-72.50165759,0.0001069,2]
[360471052,1746808741835,156.066024,0.0001519,30]
[360471083,1746809342641,156.066024,0.0001519,30]
[360471085,1746809360964,-168.3775267,9.634e-05,2]
[360471087,1746809367458,-367.23931592,9.634e-05,2]
[360471090,1746809381550,-350.46408947,9.634e-05,2]
[360471091,1746809397133,-217.05546893,9.634e-05,2]
[360471094,1746809411592,-189.33758854,9.633e-05,2]
[360471096,1746809426621,-110.66241146,9.633e-05,2]
[360471097,1746809426643,-75.64912747,9.633e-05,2]
[360471108,1746809431815,-300.0,9.632e-05,2]
[360471109,1746809431825,-224.35087253,9.633e-05,2]
[360471111,1746809431836,-300.0,9.633e-05,2]
[360471112,1746809431846,-300.0,9.633e-05,2]
[360471113,1746809431858,-1200.0,9.633e-05,2]
[360471114,1746809431868,-11378.72252128,9.634e-05,2]
[360471115,1746809431879,-156.066024,0.0001048,2]
[360471116,1746809431890,-269.42550767,0.0001059,2]
[360471117,1746809431900,-269.42550767,0.00010591,2]
[360471118,1746809431910,-269.42550767,0.00010592,2]
[360471120,1746809431919,-269.42550767,0.00010593,2]
[360471121,1746809431929,-269.42550767,0.00010594,2]
[360471123,1746809431938,-420.0,0.00010595,2]
[360471125,1746809431948,-420.0,0.00010596,2]
[360471127,1746809431958,-300.0,0.00010596,2]
[360471129,1746809431968,-1200.0,0.00010596,2]
[360471131,1746809431977,-321.1086791,0.00010636,2]
[360471133,1746809431987,-500.0,0.00010663,2]
[360471134,1746809431996,-500.0,0.00010663,2]
[360471135,1746809432106,-455.2137035,0.00010663,2]
[360471136,1746809432122,-7295.99494448,0.00010664,2]
[360471137,1746809432161,-42704.00505552,0.00010664,2]
[360471138,1746809432171,-500.0,0.00010666,2]
[360471139,1746809432180,-500.0,0.00010666,2]
[360471140,1746809432190,-500.0,0.00010666,2]
[360471141,1746809432200,-211.58477735,0.00010666,2]
[360471142,1746809432209,-500.0,0.00010666,2]
[360471143,1746809432219,-500.0,0.00010666,2]
[360471144,1746809432228,-500.0,0.00010666,2]
[360471145,1746809432237,-500.0,0.00010666,2]
[360471146,1746809432247,-500.0,0.00010666,2]
[360471147,1746809432256,-500.0,0.00010666,2]
[360471148,1746809432266,-500.0,0.00010666,2]
[360471149,1746809432276,-500.0,0.00010666,2]
[360471150,1746809432285,-500.0,0.00010666,2]
[360471151,1746809432294,-500.0,0.00010666,2]
[360471152,1746809432304,-500.0,0.00010666,2]
[360471153,1746809432314,-500.0,0.00010666,2]
[360471154,1746809432323,-500.0,0.00010666,2]
[360471155,1746809432333,-631.07435882,0.00010666,2]
[360471156,1746809432342,-500.0,0.00010666,2]
[360471157,1746809432352,-500.0,0.00010666,2]
[360471158,1746809432362,-500.0,0.00010666,2]
[360471159,1746809432371,-500.0,0.00010666,2]
[360471160,1746809432381,-250.0,0.00010666,2]
[360471161,1746809432391,-500.0,0.00010666,2]
[360471162,1746809432401,-500.0,0.00010666,2]
[360471163,1746809432411,-500.0,0.00010666,2]
[360471164,1746809432421,-215.57495317,0.00010666,2]
[360471165,1746809432430,-401.7332884,0.00010666,2]
[360471198,1746809437772,-98.2667116,0.00010666,2]
[360471199,1746809437782,-500.0,0.00010666,2]
[360471200,1746809437794,-500.0,0.00010666,2]
[360471201,1746809437805,-500.0,0.00010666,2]
[360471202,1746809437815,-500.0,0.00010666,2]
[360471203,1746809437825,-206.13328847,0.00010666,2]
[360474431,1746809476264,-207.95015264,9.633e-05,2]
[360475115,1746809485843,-292.04984736,9.633e-05,2]
[360475116,1746809485865,-199.46723146,9.633e-05,2]
[360475118,1746809491147,-161.48085177,9.633e-05,2]
[360475119,1746809491169,-174.30205059,9.633e-05,2]
[360475120,1746809501745,-155.60697604,9.633e-05,2]
[360475121,1746809501767,-46.71816044,9.633e-05,2]
[360475123,1746809516649,-271.35640537,9.633e-05,2]
[360475126,1746809531931,-300.0,9.632e-05,2]
[360475127,1746809531958,-41.06832433,9.633e-05,2]
[360475128,1746809546563,-140.85710986,9.633e-05,2]
[360475129,1746809546588,-23.76637264,9.633e-05,2]
[360475130,1746809561576,-447.81167933,9.633e-05,2]
[360475132,1746809581187,-28.42194803,9.633e-05,2]
[360475133,1746809581213,-208.73620894,9.633e-05,2]
[360475134,1746809582492,300.0,9.632e-05,2]
[360475135,1746809591781,-291.26379106,9.633e-05,2]
[360475136,1746809591804,-84.88969397,9.633e-05,2]
[360475138,1746809607230,-231.032537,9.633e-05,2]
[360475144,1746809617069,-184.07776903,9.633e-05,2]
[360475145,1746809617094,-500.0,9.633e-05,2]
[360475146,1746809617120,-500.0,9.633e-05,2]
[360475147,1746809617146,-500.0,9.633e-05,2]
[360475148,1746809617171,-500.0,9.633e-05,2]
[360475149,1746809617195,-500.0,9.633e-05,2]
[360475150,1746809617220,-500.0,9.633e-05,2]
[360475151,1746809617244,-157.83098699,9.633e-05,2]
[360475152,1746809617268,-500.0,9.633e-05,2]
[360475153,1746809617290,-500.0,9.633e-05,2]
[360475154,1746809617313,-500.0,9.633e-05,2]
[360475155,1746809617334,-500.0,9.633e-05,2]
[360475156,1746809617357,-500.0,9.633e-05,2]
[360475157,1746809617383,-500.0,9.633e-05,2]
[360475158,1746809617407,-500.0,9.633e-05,2]
[360475159,1746809617430,-500.0,9.633e-05,2]
[360475160,1746809617452,-500.0,9.633e-05,2]
[360475161,1746809617474,-500.0,9.633e-05,2]
[360475162,1746809617495,-500.0,9.633e-05,2]
[360475163,1746809617518,-500.0,9.633e-05,2]
[360475164,1746809617540,-500.0,9.633e-05,2]
[360475165,1746809617562,-327.29998118,9.633e-05,2]
[360475166,1746809617585,-207.95015264,9.633e-05,2]
[360475167,1746809617617,-500.0,9.633e-05,2]
[360475168,1746809617649,-500.0,9.633e-05,2]
[360475169,1746809617680,-500.0,9.633e-05,2]
[360475170,1746809617717,-239.36533992,9.633e-05,2]
[360475171,1746809617749,-193.26281555,9.633e-05,2]
[360475172,1746809617773,-500.0,9.633e-05,2]
[360475173,1746809617796,-500.0,9.633e-05,2]
[360475174,1746809617817,-515.83516266,9.633e-05,2]
[360475175,1746809617849,-500.0,9.633e-05,2]
[360475176,1746809617870,-68.37779203,9.642e-05,2]
[360475177,1746809621610,-181.62220797,9.642e-05,2]
[360475178,1746809660967,-203.82705088,9.633e-05,2]
[360475180,1746809667753,-296.17294912,9.633e-05,2]
[360475181,1746809667786,-14.15164128,9.633e-05,2]
[360475183,1746809682232,-165.23255155,9.632e-05,2]
[360475185,1746809696739,-154.30924315,9.632e-05,2]
[360475186,1746809702331,300.0,9.631e-05,2]
[360475187,1746809713451,-238.3728819,9.632e-05,2]
[360475189,1746809724875,180.0,9.631e-05,2]
[360475190,1746809726701,-170.61535076,9.632e-05,2]
[360475191,1746809741604,-320.7353411,9.632e-05,2]
[360475193,1746809757175,-179.23776153,9.632e-05,2]
[360475194,1746809762354,300.0,9.631e-05,2]
[360475195,1746809772134,-213.88931158,9.632e-05,2]
[360475197,1746809786561,-197.72102774,9.632e-05,2]
[360475198,1746809787691,213.8893,7.6e-05,14]
[360475199,1746809799737,500.0,9.631e-05,2]
[360475200,1746809799769,500.0,9.631e-05,2]
[360475201,1746809799822,500.0,9.631e-05,2]
[360475202,1746809799879,500.0,9.631e-05,2]
[360475203,1746809799911,500.0,9.631e-05,2]
[360475204,1746809799965,500.0,9.631e-05,2]
[360475205,1746809800015,500.0,9.631e-05,2]
[360475206,1746809800063,500.0,9.631e-05,2]
[360475207,1746809800116,500.0,9.631e-05,2]
[360475208,1746809800155,240.0,9.631e-05,2]
[360475209,1746809800189,500.0,9.631e-05,2]
[360475210,1746809800243,500.0,9.631e-05,2]
[360475211,1746809800285,500.0,9.631e-05,2]
[360475212,1746809800328,500.0,9.631e-05,2]
[360475213,1746809800358,500.0,9.631e-05,2]
[360475214,1746809800419,500.0,9.631e-05,2]
[360475215,1746809800469,500.0,9.631e-05,2]
[360475216,1746809800537,567.36661496,9.631e-05,2]
[360475217,1746809800602,500.0,9.631e-05,2]
[360475218,1746809800640,500.0,9.631e-05,2]
[360475219,1746809800723,500.0,9.631e-05,2]
[360475220,1746809800886,500.0,9.631e-05,2]
[360475221,1746809800957,382.63338504,9.631e-05,2]
[360475222,1746809802668,-117.36661496,9.631e-05,2]
[360475223,1746809802712,-111.89716616,9.631e-05,2]
[360475224,1746809803259,-229.26378112,9.631e-05,2]
[360475225,1746809816660,-256.42692587,9.533e-05,2]
[360475226,1746809816836,-20.015146,9.631e-05,2]
[360475228,1746809832766,-300.0,9.63e-05,2]
[360475229,1746809832788,-119.86244249,9.631e-05,2]
[360475230,1746809845062,-380.13755751,9.631e-05,2]
[360475231,1746809845100,-138.82390672,9.631e-05,2]
[360475233,1746809845135,-500.0,9.631e-05,2]
[360475234,1746809845170,-500.0,9.631e-05,2]
[360475235,1746809845205,-500.0,9.631e-05,2]
[360475236,1746809845240,-500.0,9.631e-05,2]
[360475237,1746809845274,-500.0,9.631e-05,2]
[360475238,1746809845309,-500.0,9.631e-05,2]
[360475239,1746809845345,-500.0,9.631e-05,2]
[360475240,1746809845380,-500.0,9.631e-05,2]
[360475241,1746809845414,-500.0,9.631e-05,2]
[360475242,1746809845448,-500.0,9.631e-05,2]
[360475243,1746809845482,-500.0,9.631e-05,2]
[360475244,1746809845517,-500.0,9.631e-05,2]
[360475245,1746809845551,-500.0,9.631e-05,2]
[360475246,1746809845586,-500.0,9.631e-05,2]
[360475247,1746809845620,-500.0,9.631e-05,2]
[360475248,1746809845654,-500.0,9.631e-05,2]
[360475249,1746809845688,-500.0,9.631e-05,2]
[360475250,1746809845723,-500.0,9.631e-05,2]
[360475251,1746809845757,-500.0,9.631e-05,2]
[360475252,1746809845790,-500.0,9.631e-05,2]
[360475253,1746809845825,-500.0,9.631e-05,2]
[360475254,1746809845861,-500.0,9.631e-05,2]
[360475255,1746809845899,-500.0,9.631e-05,2]
[360475256,1746809845938,-500.0,9.631e-05,2]
[360475257,1746809845976,-500.0,9.631e-05,2]
[360475258,1746809846015,-500.0,9.631e-05,2]
[360475259,1746809846052,-500.0,9.631e-05,2]
[360475260,1746809846088,-500.0,9.631e-05,2]
[360475261,1746809846124,-500.0,9.631e-05,2]
[360475262,1746809846157,-500.0,9.631e-05,2]
[360475263,1746809846191,-500.0,9.631e-05,2]
[360475264,1746809846365,-500.0,9.631e-05,2]
[360475265,1746809846404,-500.0,9.631e-05,2]
[360475266,1746809846441,-500.0,9.631e-05,2]
[360475267,1746809846480,-500.0,9.631e-05,2]
[360475268,1746809846516,-500.0,9.631e-05,2]
[360475269,1746809846552,-500.0,9.631e-05,2]
[360475270,1746809846589,-500.0,9.631e-05,2]
[360475271,1746809846624,-500.0,9.631e-05,2]
[360475272,1746809846659,-500.0,9.631e-05,2]
[360475273,1746809846695,-500.0,9.631e-05,2]
[360475274,1746809846731,-500.0,9.631e-05,2]
[360475275,1746809846766,-641.5151652,9.631e-05,2]
[360475276,1746809846802,-500.0,9.631e-05,2]
[360475277,1746809846838,-500.0,9.631e-05,2]
[360475278,1746809846873,-500.0,9.631e-05,2]
[360475279,1746809846909,-500.0,9.631e-05,2]
[360475280,1746809846945,-500.0,9.631e-05,2]
[360475281,1746809846982,-500.0,9.631e-05,2]
[360475282,1746809847020,-500.0,9.631e-05,2]
[360475283,1746809847057,-500.0,9.631e-05,2]
[360475284,1746809847094,-500.0,9.631e-05,2]
[360475285,1746809847128,-500.0,9.631e-05,2]
[360475286,1746809847163,-500.0,9.631e-05,2]
[360475287,1746809847201,-500.0,9.631e-05,2]
[360475288,1746809847236,-500.0,9.631e-05,2]
[360475289,1746809847271,-500.0,9.631e-05,2]
[360475290,1746809847306,-500.0,9.631e-05,2]
[360475291,1746809847341,-500.0,9.631e-05,2]
[360475292,1746809847378,-500.0,9.631e-05,2]
[360475293,1746809847415,-500.0,9.631e-05,2]
[360475294,1746809847452,-500.0,9.631e-05,2]
[360475295,1746809847492,-500.0,9.631e-05,2]
[360475296,1746809847529,-500.0,9.631e-05,2]
[360475297,1746809847566,-500.0,9.631e-05,2]
[360475298,1746809847602,-500.0,9.631e-05,2]
[360475299,1746809847637,-500.0,9.631e-05,2]
[360475300,1746809847673,-500.0,9.631e-05,2]
[360475301,1746809847711,-500.0,9.631e-05,2]
[360475302,1746809847749,-500.0,9.631e-05,2]
[360475303,1746809847784,-500.0,9.631e-05,2]
[360475304,1746809847818,-500.0,9.631e-05,2]
[360475305,1746809847854,-500.0,9.631e-05,2]
[360475306,1746809847890,-500.0,9.631e-05,2]
[360475307,1746809847927,-500.0,9.631e-05,2]
[360475308,1746809847971,-500.0,9.631e-05,2]
[360475309,1746809848007,-500.0,9.631e-05,2]
[360475310,1746809848047,-500.0,9.631e-05,2]
[360475311,1746809848082,-500.0,9.631e-05,2]
[360475312,1746809848121,-500.0,9.631e-05,2]
[360475313,1746809848156,-500.0,9.631e-05,2]
[360475314,1746809848197,-500.0,9.631e-05,2]
[360475315,1746809848234,-500.0,9.631e-05,2]
[360475316,1746809848270,-500.0,9.631e-05,2]
[360475317,1746809848305,-500.0,9.631e-05,2]
[360475318,1746809848340,-500.0,9.631e-05,2]
[360475319,1746809848376,-500.0,9.631e-05,2]
[360475320,1746809848411,-500.0,9.631e-05,2]
[360475321,1746809848446,-500.0,9.631e-05,2]
[360475322,1746809848481,-500.0,9.631e-05,2]
[360475323,1746809848671,-234.31458471,9.632e-05,2]
[360475324,1746809848782,-234.31458471,9.632e-05,2]
[360475325,1746809861623,-177.77777415,9.905e-05,2]
[360475326,1746809892502,500.0,9.631e-05,2]
[360475327,1746809892546,500.0,9.631e-05,2]
[360475328,1746809892596,500.0,9.631e-05,2]
[360475329,1746809892633,500.0,9.631e-05,2]
[360475330,1746809892677,475.52356197,9.631e-05,2]
[360475331,1746809892714,500.0,9.631e-05,2]
[360475332,1746809892750,500.0,9.631e-05,2]
[360475333,1746809892800,500.0,9.631e-05,2]
[360475334,1746809892841,500.0,9.631e-05,2]
[360475335,1746809892873,500.0,9.631e-05,2]
[360475336,1746809892916,500.0,9.631e-05,2]
[360475337,1746809892949,500.0,9.631e-05,2]
[360475338,1746809892988,500.0,9.631e-05,2]
[360475339,1746809893022,500.0,9.631e-05,2]
[360475340,1746809893064,500.0,9.631e-05,2]
[360475341,1746809893107,500.0,9.631e-05,2]
[360475342,1746809893154,500.0,9.631e-05,2]
[360475343,1746809895854,1000.0,9.531e-05,2]
[360475344,1746809903933,500.0,9.631e-05,2]
[360475345,1746809909047,-250.3926433,9.631e-05,2]
[360475347,1746809921572,-201.01492869,9.63e-05,2]
[360475349,1746809936606,-158.98507131,9.63e-05,2]
[360475350,1746809936630,-97.59759384,9.63e-05,2]
[360475351,1746809952110,-162.06776293,9.629e-05,2]
[360475353,1746809966677,-137.93223707,9.629e-05,2]
[360475354,1746809966701,-91.42394267,9.63e-05,2]
[360475355,1746809981709,-301.99339218,9.531e-05,2]
[360475361,1746809998814,-127.69159579,9.531e-05,2]
[360475362,1746809998837,-205.57758779,9.63e-05,2]
[360475363,1746810012204,-218.74574511,9.629e-05,2]
[360475365,1746810026756,-81.25425489,9.629e-05,2]
[360475366,1746810026780,-47.12571592,9.63e-05,2]
[360475367,1746810026814,-210.78798891,9.63e-05,2]
[360475368,1746810041670,-242.31371294,9.63e-05,2]
[360475372,1746810058074,-187.0,9.629e-05,2]
[360475375,1746810071618,-300.0,9.628e-05,2]
[360475376,1746810071642,-254.7847564,9.629e-05,2]
[360475378,1746810084220,502.0,9.629e-05,30]
[360475379,1746810087863,-329.79742116,9.629e-05,2]
[360475381,1746810101655,-154.00090744,9.629e-05,2]
[360475382,1746810116575,-249.9913392,9.629e-05,2]
[360475383,1746810131670,-222.00598474,9.628e-05,2]
[360475384,1746810146611,-77.99401526,9.628e-05,2]
[360475385,1746810146636,-174.07127192,9.629e-05,2]
[360475386,1746810162172,-429.29381175,9.629e-05,2]
[360475387,1746810176606,-250.0,9.629e-05,2]
[360475390,1746810191669,-244.65217794,9.628e-05,2]
[360475391,1746810206603,-55.34782206,9.628e-05,2]
[360475392,1746810206627,-223.2853317,9.629e-05,2]
[360475394,1746810221710,-238.318564,9.629e-05,2]
[360475395,1746810236604,-238.318564,9.629e-05,2]
[360475396,1746810252919,-156.98344056,9.628e-05,2]
[360475397,1746810267054,-250.0,9.529e-05,2]
[360475398,1746810267584,-250.0,9.529e-05,2]
[360475400,1746810281546,-277.44769808,9.529e-05,2]
[360475401,1746810282128,-277.44769808,9.529e-05,2]
[360475403,1746810297806,-155.01581947,9.528e-05,2]
[360475404,1746810307204,-300.0,9.527e-05,2]
[360475405,1746810307250,-344.98418053,9.528e-05,2]
[360475406,1746810307287,-500.0,9.528e-05,2]
[360475407,1746810307326,-500.0,9.528e-05,2]
[360475408,1746810307367,-500.0,9.528e-05,2]
[360475409,1746810307407,-500.0,9.528e-05,2]
[360475410,1746810307446,-500.0,9.528e-05,2]
[360475411,1746810307483,-500.0,9.528e-05,2]
[360475412,1746810307520,-500.0,9.528e-05,2]
[360475413,1746810307557,-500.0,9.528e-05,2]
[360475414,1746810307592,-500.0,9.528e-05,2]
[360475415,1746810307632,-423.67569215,9.528e-05,2]
[360475416,1746810307670,-500.0,9.528e-05,2]
[360475417,1746810307711,-500.0,9.528e-05,2]
[360475418,1746810307736,-500.0,9.528e-05,2]
[360475419,1746810307760,-500.0,9.528e-05,2]
[360475420,1746810307784,-500.0,9.528e-05,2]
[360475421,1746810307809,-300.0,9.528e-05,2]
[360475422,1746810307832,-500.0,9.528e-05,2]
[360475423,1746810307857,-500.0,9.528e-05,2]
[360475424,1746810307879,-500.0,9.528e-05,2]
[360475425,1746810307901,-500.0,9.528e-05,2]
[360475426,1746810307925,-500.0,9.528e-05,2]
[360475427,1746810307947,-500.0,9.528e-05,2]
[360475428,1746810307970,-500.0,9.528e-05,2]
[360475429,1746810307993,-500.0,9.528e-05,2]
[360475430,1746810308017,-500.0,9.528e-05,2]
[360475431,1746810308039,-500.0,9.528e-05,2]
[360475432,1746810308062,-500.0,9.528e-05,2]
[360475433,1746810308087,-500.0,9.528e-05,2]